[Event "NJSK 2023 Meisjes B"]
[Site "Almelo, Netherlands"]
[Date "2023.05.06"]
[Round "7.6"]
[White "Wortman, Manixia"]
[Black "Yildirim, Azra"]
[Result "1-0"]
[TimeControl "90min/40moves + 30min + 30sec/move"]
[WhiteElo "1493"]
[BlackElo "1275"]

1. e4 {[%clk 01:30:59]} e5 {[%clk 01:30:33]} {[%emt 00:00:27]} 2. Nf3 {[%clk
01:31:18]} {[%emt 00:00:11]} Nc6 {[%clk 01:30:41]} {[%emt 00:00:22]} 3. Bc4
{[%clk 01:31:38]} {[%emt 00:00:09]} h6 {[%clk 01:30:49]} {[%emt 00:00:22]} 4.
d4 {[%clk 01:30:37]} {[%emt 00:01:31]} exd4 {[%clk 01:29:55]} {[%emt 00:01:24]}
5. Nxd4 {[%clk 01:30:58]} {[%emt 00:00:08]} Nf6 {[%clk 01:30:03]} {[%emt
00:00:22]} 6. Nc3 {[%clk 01:30:58]} {[%emt 00:00:30]} Bb4 {[%clk 01:28:05]}
{[%emt 00:02:28]} 7. Nxc6 {[%clk 01:25:21]} {[%emt 00:06:07]} Bxc3+ {[%clk
01:26:24]} {[%emt 00:02:11]} 8. bxc3 {[%clk 01:25:41]} {[%emt 00:00:10]} bxc6
{[%clk 01:26:45]} {[%emt 00:00:09]} 9. e5 {[%clk 01:19:51]} {[%emt 00:06:19]}
Qe7 {[%clk 01:21:10]} {[%emt 00:06:05]} 10. Qe2 {[%clk 01:17:35]} {[%emt
00:02:46]} Nd5 {[%clk 01:20:39]} {[%emt 00:01:01]} 11. Bd2 {[%clk 01:12:53]}
{[%emt 00:05:12]} O-O {[%clk 01:17:58]} {[%emt 00:03:12]} 12. O-O {[%clk
01:11:11]} {[%emt 00:02:12]} Re8 {[%clk 01:11:25]} {[%emt 00:07:03]} 13. Rfe1
{[%clk 01:08:45]} {[%emt 00:02:56]} d6 {[%clk 01:09:14]} {[%emt 00:02:41]} 14.
Qf3 {[%clk 01:01:20]} {[%emt 00:07:55]} dxe5 {[%clk 01:03:39]} {[%emt
00:06:05]} 15. Bxd5 {[%clk 01:01:17]} {[%emt 00:00:32]} cxd5 {[%clk 01:03:54]}
{[%emt 00:00:15]} 16. Qxd5 {[%clk 01:01:35]} {[%emt 00:00:12]} Bf5 {[%clk
01:03:58]} {[%emt 00:00:27]} 17. Bf4 {[%clk 00:59:11]} {[%emt 00:02:54]} Qd6
{[%clk 00:58:41]} {[%emt 00:05:47]} 18. Rxe5 {[%clk 00:57:15]} {[%emt
00:02:25]} Rxe5 {[%clk 00:53:44]} {[%emt 00:05:27]} 19. Qxa8+ {[%clk 00:57:01]}
{[%emt 00:00:45]} Kh7 {[%clk 00:53:54]} {[%emt 00:00:21]} 20. Bxe5 {[%clk
00:56:56]} {[%emt 00:00:34]} Qxe5 {[%clk 00:54:12]} {[%emt 00:00:12]} 21. Qxa7
{[%clk 00:48:51]} {[%emt 00:08:36]} Qxc3 {[%clk 00:53:48]} {[%emt 00:00:55]} 22.
Rc1 {[%clk 00:47:23]} {[%emt 00:01:57]} Bxc2 {[%clk 00:51:42]} {[%emt
00:02:36]} 23. Qe3 {[%clk 00:43:39]} {[%emt 00:04:14]} Qxe3 {[%clk 00:47:06]}
{[%emt 00:05:07]} 24. fxe3 {[%clk 00:43:58]} {[%emt 00:00:10]} Be4 {[%clk
00:47:04]} {[%emt 00:00:32]} 25. Rxc7 {[%clk 00:44:16]} {[%emt 00:00:12]} Kg6
{[%clk 00:46:36]} {[%emt 00:00:58]} 26. a4 {[%clk 00:44:11]} {[%emt 00:00:35]}
Kf6 {[%clk 00:42:33]} {[%emt 00:04:33]} 27. a5 {[%clk 00:44:06]} {[%emt
00:00:35]} Ke6 {[%clk 00:42:46]} {[%emt 00:00:17]} 28. a6 {[%clk 00:44:08]}
{[%emt 00:00:28]} Kd6 {[%clk 00:43:01]} {[%emt 00:00:15]} 29. Rxf7 {[%clk
00:44:09]} {[%emt 00:00:28]} Kc6 {[%clk 00:43:13]} {[%emt 00:00:19]} 30. Rxg7
{[%clk 00:44:24]} {[%emt 00:00:14]} Kb6 {[%clk 00:43:25]} {[%emt 00:00:19]} 31.
a7 {[%clk 00:44:29]} {[%emt 00:00:25]} h5 {[%clk 00:42:19]} {[%emt 00:01:35]}
32. Re7 {[%clk 00:44:27]} {[%emt 00:00:32]} Bb7 {[%clk 00:42:16]} {[%emt
00:00:34]} 33. Rh7 {[%clk 00:43:07]} {[%emt 00:01:50]} Kxa7 {[%clk 00:42:00]}
{[%emt 00:00:46]} 34. Rxh5 {[%clk 00:43:20]} {[%emt 00:00:16]} Kb6 {[%clk
00:41:38]} {[%emt 00:00:52]} 35. Rg5 {[%clk 00:43:01]} {[%emt 00:00:47]} Kc6
{[%clk 00:41:28]} {[%emt 00:00:42]} 36. h4 {[%clk 00:43:19]} {[%emt 00:00:12]}
Kd6 {[%clk 00:41:15]} {[%emt 00:00:44]} 37. h5 {[%clk 00:43:35]} {[%emt
00:00:13]} Ke6 {[%clk 00:41:01]} {[%emt 00:00:44]} 38. h6 {[%clk 00:43:47]}
{[%emt 00:00:18]} Be4 {[%clk 00:41:21]} {[%emt 00:00:10]} 39. Rh5 {[%clk
00:43:53]} {[%emt 00:00:23]} Bh7 {[%clk 00:41:00]} {[%emt 00:00:52]} 40. Rg5
{[%clk 00:43:15]} {[%emt 00:01:09]} Kf6 {[%clk 00:39:17]} {[%emt 00:02:13]} 41.
Rg7 {[%clk 00:43:31]} {[%emt 00:00:13]} Be4 {[%clk 00:39:28]} {[%emt 00:00:19]}
42. Ra7 {[%clk 00:43:20]} {[%emt 00:00:41]} Kg6 {[%clk 00:38:40]} {[%emt
00:01:18]} 43. h7 {[%clk 00:43:41]} {[%emt 00:00:08]} 1-0

[Event "NJSK 2023 Meisjes B"]
[Site "Almelo, Netherlands"]
[Date "2023.05.06"]
[Round "7.7"]
[White "Zahirna, Iryna"]
[Black "Knobbe, Elise"]
[Result "1/2-1/2"]
[TimeControl "90min/40moves + 30min + 30sec/move"]
[WhiteElo "1594"]
[BlackElo "1584"]

1. d4 {[%clk 01:29:35]} {[%emt 00:01:25]} f5 {[%clk 01:30:44]} {[%emt
00:00:16]} 2. Nc3 {[%clk 01:29:19]} {[%emt 00:00:46]} Nf6 {[%clk 01:31:03]}
{[%emt 00:00:11]} 3. Bg5 {[%clk 01:29:00]} {[%emt 00:00:50]} e6 {[%clk
01:25:53]} {[%emt 00:05:40]} 4. e4 {[%clk 01:25:18]} {[%emt 00:04:11]} fxe4
{[%clk 01:24:17]} {[%emt 00:02:06]} 5. Bxf6 {[%clk 01:22:09]} {[%emt 00:03:39]}
Qxf6 {[%clk 01:22:35]} {[%emt 00:02:11]} 6. Nxe4 {[%clk 01:22:35]} {[%emt
00:00:04]} Qg6 {[%clk 01:19:47]} {[%emt 00:03:18]} 7. Ng3 {[%clk 01:16:56]}
{[%emt 00:06:08]} Be7 {[%clk 01:16:28]} {[%emt 00:03:49]} 8. Bd3 {[%clk
01:08:59]} {[%emt 00:08:27]} Qf7 {[%clk 01:15:00]} {[%emt 00:01:57]} 9. Nf3
{[%clk 01:06:50]} {[%emt 00:02:40]} d6 {[%clk 01:10:39]} {[%emt 00:04:51]} 10.
Qe2 {[%clk 00:59:47]} {[%emt 00:07:32]} Nc6 {[%clk 01:05:28]} {[%emt 00:05:42]}
11. c3 {[%clk 00:55:44]} {[%emt 00:04:33]} Bd7 {[%clk 01:02:13]} {[%emt
00:03:44]} 12. O-O-O {[%clk 00:41:05]} {[%emt 00:15:09]} O-O-O {[%clk
00:58:27]} {[%emt 00:04:16]} 13. Rhe1 {[%clk 00:34:31]} {[%emt 00:07:06]} Bf6
{[%clk 00:53:25]} {[%emt 00:05:31]} 14. Qc2 {[%clk 00:32:07]} {[%emt 00:02:54]}
g6 {[%clk 00:46:36]} {[%emt 00:07:19]} 15. Ne4 {[%clk 00:25:18]} {[%emt
00:07:19]} Bg7 {[%clk 00:39:23]} {[%emt 00:07:42]} 16. Ned2 {[%clk 00:20:52]}
{[%emt 00:04:56]} e5 {[%clk 00:36:51]} {[%emt 00:03:02]} 17. dxe5 {[%clk
00:20:03]} {[%emt 00:01:19]} Nxe5 {[%clk 00:35:41]} {[%emt 00:01:40]} 18. Nb3
{[%clk 00:17:12]} {[%emt 00:03:22]} Nxf3 {[%clk 00:33:57]} {[%emt 00:02:15]} 19.
gxf3 {[%clk 00:17:25]} {[%emt 00:00:16]} Qxf3 {[%clk 00:33:03]} {[%emt
00:01:23]} 20. Be4 {[%clk 00:15:32]} {[%emt 00:02:23]} Qf4+ {[%clk 00:31:43]}
{[%emt 00:01:50]} 21. Kb1 {[%clk 00:15:56]} {[%emt 00:00:06]} Bf5 {[%clk
00:29:19]} {[%emt 00:02:54]} 22. Bxf5+ {[%clk 00:14:11]} {[%emt 00:02:15]} Qxf5
{[%clk 00:29:33]} {[%emt 00:00:16]} 23. Qxf5+ {[%clk 00:13:38]} {[%emt
00:01:03]} gxf5 {[%clk 00:29:58]} {[%emt 00:00:05]} 24. Re7 {[%clk 00:13:26]}
{[%emt 00:00:41]} Bf6 {[%clk 00:29:01]} {[%emt 00:01:28]} 25. Rf7 {[%clk
00:12:41]} {[%emt 00:01:15]} Rdf8 {[%clk 00:27:55]} {[%emt 00:01:35]} 26. Rxf8+
{[%clk 00:12:44]} {[%emt 00:00:27]} Rxf8 {[%clk 00:28:22]} {[%emt 00:00:02]} 27.
Rg1 {[%clk 00:11:34]} {[%emt 00:01:39]} Kd7 {[%clk 00:25:29]} {[%emt 00:03:24]}
28. Nd4 {[%clk 00:10:24]} {[%emt 00:01:40]} Bxd4 {[%clk 00:24:00]} {[%emt
00:01:59]} 29. cxd4 {[%clk 00:10:50]} {[%emt 00:00:05]} Rf7 {[%clk 00:24:20]}
{[%emt 00:00:10]} 30. f4 {[%clk 00:10:00]} {[%emt 00:01:20]} a5 {[%clk
00:22:43]} {[%emt 00:02:07]} 31. a4 {[%clk 00:09:10]} {[%emt 00:01:19]} Kc6
{[%clk 00:21:28]} {[%emt 00:01:45]} 32. Kc2 {[%clk 00:08:14]} {[%emt 00:01:26]}
Kd5 {[%clk 00:20:38]} {[%emt 00:01:20]} 33. Kd3 {[%clk 00:07:52]} {[%emt
00:00:52]} c6 {[%clk 00:18:49]} {[%emt 00:02:19]} 34. h4 {[%clk 00:07:00]}
{[%emt 00:01:21]} Rf6 {[%clk 00:13:02]} {[%emt 00:06:17]} 35. h5 {[%clk
00:04:02]} {[%emt 00:03:28]} h6 {[%clk 00:10:38]} {[%emt 00:02:54]} 36. Rg7
{[%clk 00:02:20]} {[%emt 00:02:12]} Rf8 {[%clk 00:05:41]} {[%emt 00:05:27]} 37.
Rxb7 {[%clk 00:02:01]} {[%emt 00:00:49]} Ra8 {[%clk 00:04:02]} {[%emt
00:02:09]} 38. Rh7 {[%clk 00:02:03]} {[%emt 00:00:28]} c5 {[%clk 00:02:39]}
{[%emt 00:01:52]} 39. dxc5 {[%clk 00:02:07]} {[%emt 00:00:28]} Kxc5 {[%clk
00:02:58]} {[%emt 00:00:11]} 1/2-1/2